bitfinex/quotes_BTCUSD_20260215
["timestamp","ask_amount","ask_price","bid_price","bid_amount"]
[1771117825495,0.0004,69911.0,69910.0,0.00016]
[1771117825692,0.0024,69911.0,69910.0,0.00416]
[1771117826099,0.0004,69911.0,69910.0,0.00016]
[1771117826302,0.0004,69911.0,69910.0,0.00416]
[1771117826505,0.0024,69911.0,69910.0,0.00416]
[1771117826718,0.0024,69911.0,69910.0,0.07568052]
[1771117827670,0.0004,69911.0,69910.0,0.00016]
[1771117828058,0.0054,69911.0,69910.0,0.00216]
[1771117828218,0.0004,69911.0,69910.0,0.00016]
[1771117828627,0.0044,69911.0,69910.0,0.00216]
[1771117828831,0.0004,69911.0,69910.0,0.00016]
[1771117829157,0.0054,69911.0,69910.0,0.00216]
[1771117829460,0.0004,69911.0,69910.0,0.00016]
[1771117830087,0.0004,69911.0,69908.0,4e-05]
[1771117830856,0.0004,69911.0,69910.0,0.002]
[1771117830857,0.0084,69911.0,69910.0,0.002]
[1771117831067,0.0004,69911.0,69908.0,4e-05]
[1771117831467,0.0094,69911.0,69908.0,0.00204]
[1771117831714,0.0004,69911.0,69908.0,4e-05]
[1771117832084,0.0084,69911.0,69910.0,0.002]
[1771117832303,0.07191993,69911.0,69904.0,0.07152643]
[1771117832474,0.0004,69911.0,69908.0,0.002]
[1771117832662,0.07152315,69908.0,69901.0,0.07152959]
[1771117832868,0.09985468,69910.0,69900.0,0.0002]
[1771117833072,0.02373939,69910.0,69895.0,0.0002]
[1771117833344,0.0084,69911.0,69895.0,0.0002]
[1771117833345,0.07153304,69898.0,69895.0,0.0002]
[1771117833898,0.07153382,69897.0,69895.0,0.0002]
[1771117834106,0.07153485,69896.0,69895.0,0.0002]
[1771117834446,0.4300943,69905.0,69887.0,0.000127]
[1771117834646,0.07155123,69880.0,69879.0,1e-08]
[1771117834837,0.02373939,69888.0,69879.0,1e-08]
[1771117834838,0.09528793,69883.0,69879.0,1e-08]
[1771117834989,0.07154854,69883.0,69879.0,1e-08]
[1771117835184,0.05006515,69883.0,69879.0,1e-08]
[1771117835722,0.09528408,69887.0,69879.0,1e-08]
[1771117835913,0.09528408,69887.0,69879.0,4.346e-05]
[1771117836102,0.07154508,69886.0,69879.0,4.346e-05]
[1771117836305,0.00012,69890.0,69879.0,4.346e-05]
[1771117836643,0.07154244,69889.0,69879.0,0.07159511]
[1771117837004,0.07154244,69889.0,69879.0,0.09549056]
[1771117837208,0.07154244,69889.0,69881.0,0.07154924]
[1771117837525,0.003,69883.0,69881.0,0.09544469]
[1771117837726,0.07154244,69889.0,69881.0,0.09544469]
[1771117838081,0.07454244,69889.0,69881.0,0.09527734]
[1771117838236,4e-05,69882.0,69881.0,0.09519734]
[1771117838760,4e-05,69892.0,69884.0,0.07960773]
[1771117838920,4e-05,69892.0,69890.0,0.07154006]
[1771117839117,4e-05,69892.0,69889.0,0.07154006]
[1771117839316,4e-05,69892.0,69884.0,0.02389545]
[1771117839509,0.0715407,69891.0,69884.0,0.09544249]
[1771117839952,4e-05,69892.0,69885.0,0.07154528]
[1771117840109,4e-05,69892.0,69884.0,0.31008208]
[1771117840309,4e-05,69892.0,69887.0,0.07154402]
[1771117840548,4e-05,69892.0,69888.0,0.07154232]
[1771117840910,0.003,69891.0,69888.0,0.07154232]
[1771117841119,4e-05,69892.0,69889.0,0.07154198]
[1771117842033,0.003,69891.0,69889.0,0.07154198]
[1771117843262,4e-05,69892.0,69889.0,0.07154198]
[1771117843671,0.00204,69892.0,69889.0,0.07354198]
[1771117843817,4e-05,69892.0,69891.0,0.07153996]
[1771117844024,4e-05,69896.0,69894.0,0.07153679]
[1771117844332,4e-05,69896.0,69894.0,0.07136944]
[1771117845493,4e-05,69896.0,69895.0,0.07153587]
[1771117846357,0.00604,69896.0,69895.0,0.07153587]
[1771117846692,4e-05,69896.0,69895.0,0.07153587]
[1771117846890,0.00704,69896.0,69895.0,0.07353587]
[1771117847292,4e-05,69896.0,69895.0,0.07153587]
[1771117847796,0.00404,69896.0,69894.0,0.01739534]
[1771117848432,0.00444,69896.0,69895.0,0.07153587]
[1771117849298,1e-08,69896.0,69895.0,0.07153587]
[1771117849700,0.00300001,69896.0,69895.0,0.07153587]
[1771117849904,1e-08,69896.0,69895.0,0.07153587]
[1771117850102,1e-08,69896.0,69895.0,0.09582716]
[1771117850302,0.00300001,69896.0,69895.0,0.09782716]
[1771117850505,0.0004,69903.0,69895.0,0.09582614]
[1771117850725,0.0004,69903.0,69902.0,0.07152871]
[1771117850923,0.00023365,69903.0,69902.0,0.07136169]
[1771117851128,0.0916,69906.0,69905.0,0.07152564]
[1771117851328,0.01638013,69910.0,69905.0,0.07152564]
[1771117851530,0.01638013,69910.0,69903.0,0.0715274]
[1771117852435,0.01647913,69910.0,69907.0,0.07152325]
[1771117852633,0.01647913,69910.0,69906.0,0.07152461]
[1771117853047,0.01647913,69910.0,69905.0,0.07152359]
[1771117853048,0.01747913,69910.0,69907.0,0.0715235]
[1771117853239,0.01747913,69910.0,69907.0,0.0713635]
[1771117853240,0.01647913,69910.0,69907.0,0.0713635]
[1771117853476,0.01647913,69910.0,69908.0,0.07152212]
[1771117853978,0.01947913,69910.0,69907.0,0.09665479]
[1771117854404,0.01647913,69910.0,69907.0,0.09565479]
[1771117854570,0.01647913,69910.0,69907.0,0.02429129]
[1771117855394,0.01647913,69910.0,69907.0,0.09581466]
[1771117855725,0.01647913,69910.0,69907.0,0.02429129]
[1771117856019,0.01647913,69910.0,69906.0,0.07152441]
[1771117856216,0.02147913,69910.0,69907.0,0.001]
[1771117856391,0.01647913,69910.0,69906.0,0.07152441]
[1771117856781,0.01747913,69910.0,69907.0,0.001]
[1771117857004,0.01647913,69910.0,69906.0,0.07152441]
[1771117857316,0.02147913,69910.0,69907.0,0.001]
[1771117857526,0.02147913,69910.0,69906.0,0.07152441]
[1771117857667,0.01647913,69910.0,69906.0,0.07152441]
[1771117858023,0.02247913,69910.0,69907.0,0.001]
[1771117859200,0.08799977,69910.0,69903.0,0.02429129]
[1771117859396,0.09299977,69910.0,69906.0,0.001]
[1771117859911,0.02390602,69909.0,69893.0,0.02429129]
[1771117860121,0.0715271,69904.0,69897.0,0.07153373]
[1771117860330,0.0715271,69904.0,69893.0,0.43854818]
[1771117860331,0.07152363,69907.0,69900.0,0.0715307]
[1771117860529,9.9e-05,69907.0,69901.0,0.07152881]
[1771117860743,9.9e-05,69907.0,69906.0,0.001]
[1771117860945,9.9e-05,69907.0,69901.0,0.07152881]
[1771117861144,0.0004,69912.0,69910.0,0.07152052]
[1771117861347,0.0004,69912.0,69909.0,0.07152086]
[1771117861748,0.0004,69912.0,69908.0,0.07152086]
[1771117861947,0.0004,69912.0,69906.0,0.07152446]
[1771117863084,0.0004,69912.0,69903.0,0.02429129]
[1771117863085,0.0114,69911.0,69903.0,0.02429129]
[1771117863292,0.0004,69911.0,69903.0,0.02429129]
[1771117863467,0.0004,69911.0,69906.0,0.071524]
[1771117863673,0.00744345,69911.0,69906.0,0.072524]
[1771117863871,0.00044345,69911.0,69906.0,0.071524]
[1771117864187,0.00544345,69911.0,69906.0,0.09581529]
[1771117864799,0.00544345,69911.0,69907.0,0.07152359]
[1771117865428,0.00544345,69911.0,69906.0,0.09581571]
[1771117865987,0.00044345,69911.0,69906.0,0.09581571]
[1771117866187,0.00644345,69911.0,69906.0,0.09581571]
[1771117866384,0.00644345,69911.0,69906.0,0.07152442]
[1771117866630,0.00044345,69911.0,69907.0,0.02429129]
[1771117866838,0.00544345,69911.0,69907.0,0.02429129]
[1771117866978,0.00044345,69911.0,69907.0,0.02429129]
[1771117867424,0.00644345,69911.0,69906.0,0.07152442]
[1771117868008,0.00644345,69911.0,69905.0,0.07152378]
[1771117868009,0.00644345,69911.0,69903.0,0.02429129]
[1771117868244,0.00644345,69911.0,69905.0,0.07152489]
[1771117868403,0.00644345,69911.0,69910.0,0.00016]
[1771117868602,0.00044345,69911.0,69910.0,0.00016]
[1771117868806,0.07152372,69907.0,69901.0,0.07152968]
[1771117869330,0.07152372,69907.0,69900.0,0.07153041]
[1771117870102,0.07192372,69907.0,69900.0,0.07153041]
[1771117870226,0.08292372,69907.0,69901.0,0.001]
[1771117870433,0.07192372,69907.0,69900.0,0.07153041]
[1771117870626,0.0004,69907.0,69901.0,0.07152959]
[1771117871028,0.07192361,69907.0,69900.0,0.07153035]
[1771117871233,0.07192361,69907.0,69898.0,0.02429129]
[1771117871457,0.07192361,69907.0,69900.0,0.07153]
[1771117871864,0.07492361,69907.0,69900.0,0.07153]
[1771117872076,0.07192361,69907.0,69900.0,0.07153]
[1771117872414,0.0024,69907.0,69900.0,0.07153]
[1771117872614,0.0024,69907.0,69898.0,0.02429129]
[1771117872895,0.0004,69907.0,69903.0,0.07152695]
[1771117873120,0.0024,69907.0,69903.0,0.07152695]
[1771117874750,0.0004,69907.0,69903.0,0.07152695]
[1771117874995,0.0004,69907.0,69903.0,0.07252695]
[1771117875200,0.0004,69907.0,69903.0,0.001]
[1771117875428,0.0004,69907.0,69903.0,0.07152734]
[1771117875629,0.0014,69907.0,69903.0,0.07152734]
[1771117876132,0.0004,69907.0,69903.0,0.07152734]
[1771117876331,0.0064,69907.0,69903.0,0.07252734]
[1771117876561,0.0004,69907.0,69903.0,0.07152734]
[1771117877042,0.0004,69907.0,69902.0,0.09619582]
[1771117877043,0.0014,69907.0,69902.0,0.09619582]
[1771117877240,0.0014,69907.0,69902.0,0.0246675]
[1771117877564,0.0014,69907.0,69901.0,0.07152936]
[1771117878036,0.0004,69907.0,69903.0,0.0002]
[1771117878241,0.07152536,69906.0,69903.0,0.0002]
[1771117878398,0.07152536,69906.0,69897.0,0.09620067]
[1771117878599,0.07152787,69903.0,69896.0,0.0002]
[1771117879205,0.07152787,69903.0,69896.0,0.07173447]
[1771117880414,0.07152951,69902.0,69896.0,0.0002]
[1771117881355,0.07152951,69902.0,69896.0,0.0062]
[1771117881670,0.07152794,69903.0,69896.0,0.07173462]
[1771117881869,0.001,69902.0,69896.0,0.07273462]
[1771117882238,0.07252872,69902.0,69896.0,0.07273462]
[1771117882441,0.07252872,69902.0,69896.0,0.0012]
[1771117882637,0.001,69902.0,69896.0,0.0012]
[1771117882845,0.001,69902.0,69897.0,0.07153319]
[1771117883288,0.00104,69902.0,69900.0,4e-05]
[1771117884221,4e-05,69902.0,69900.0,4e-05]
[1771117884600,0.00104,69902.0,69900.0,4e-05]
[1771117884811,4e-05,69902.0,69900.0,4e-05]
[1771117885192,0.00104,69902.0,69900.0,0.00504]
[1771117885956,4e-05,69902.0,69900.0,4e-05]
[1771117886291,0.00204,69902.0,69900.0,0.00104]
[1771117886497,0.00204,69902.0,69900.0,0.00124]
[1771117887510,0.00204,69902.0,69900.0,0.00024]
[1771117887511,4e-05,69902.0,69900.0,0.00024]
[1771117887841,0.00104,69902.0,69900.0,0.00224]
[1771117888137,4e-05,69902.0,69900.0,0.00024]
[1771117888338,4e-05,69902.0,69900.0,0.00224]
[1771117888522,0.07256944,69902.0,69900.0,0.00224]
[1771117888710,0.07156944,69902.0,69900.0,0.00024]
[1771117888928,0.07156944,69902.0,69900.0,0.00224]
[1771117888929,0.07256944,69902.0,69900.0,0.00224]
[1771117889202,0.07156944,69902.0,69900.0,0.00024]
[1771117889700,0.07256944,69902.0,69900.0,0.00124]
[1771117890751,0.02263127,69901.0,69890.0,0.00016]
[1771117890953,0.07153349,69898.0,69891.0,0.07153964]
[1771117891854,0.02263127,69901.0,69890.0,0.00012]
[1771117892041,0.07153519,69896.0,69890.0,0.00012]
[1771117892527,0.07153519,69896.0,69891.0,0.007]
[1771117892700,0.07153519,69896.0,69890.0,0.00012]
[1771117892905,0.07153421,69897.0,69890.0,0.00012]
[1771117893602,0.07153216,69899.0,69890.0,0.00012]
[1771117893765,0.07153306,69898.0,69891.0,0.07153996]
[1771117894113,0.071535,69896.0,69890.0,0.00112]
[1771117894304,0.071535,69896.0,69890.0,0.00012]
[1771117894467,0.07153394,69897.0,69890.0,0.00012]
[1771117894468,0.07253394,69897.0,69890.0,0.07366097]
[1771117894877,0.07153394,69897.0,69890.0,0.07166097]
[1771117895074,0.07153394,69897.0,69891.0,0.001]
[1771117895481,0.07153394,69897.0,69891.0,0.0002]
[1771117895691,0.07653394,69897.0,69891.0,0.0002]
[1771117895882,0.005,69897.0,69891.0,0.07173985]
[1771117896885,0.07153358,69898.0,69891.0,0.07173985]
[1771117897234,0.07353383,69897.0,69891.0,0.0012]
[1771117897436,0.002,69897.0,69891.0,0.0012]
[1771117897643,0.02263127,69901.0,69894.0,0.07153597]
[1771117897835,0.002,69897.0,69896.0,0.07153448]
[1771117898018,0.002,69897.0,69891.0,0.28735578]
[1771117898019,0.002,69897.0,69894.0,0.07153628]
[1771117898229,4e-05,69896.0,69894.0,0.07141628]
[1771117898971,4e-05,69896.0,69893.0,0.07153761]
[1771117900002,4e-05,69896.0,69891.0,0.0002]
[1771117900205,4e-05,69896.0,69894.0,0.011]
[1771117900521,4e-05,69896.0,69893.0,0.07153714]
[1771117901106,0.00204,69896.0,69893.0,0.08353714]
[1771117901515,4e-05,69896.0,69893.0,0.07153714]
[1771117901735,0.00104,69896.0,69893.0,0.07653714]
[1771117902134,4e-05,69896.0,69893.0,0.07153714]
[1771117903071,4e-05,69896.0,69893.0,0.07173714]
[1771117903372,0.00104,69896.0,69893.0,0.07973714]
[1771117903573,0.00104,69896.0,69894.0,0.0715367]
[1771117903719,4e-05,69896.0,69893.0,0.07173714]
[1771117903921,0.00104,69896.0,69893.0,0.07873714]
[1771117904750,4e-05,69896.0,69893.0,0.07173714]
[1771117905088,0.00104,69896.0,69893.0,0.07973714]
[1771117906267,4e-05,69896.0,69893.0,0.07173714]
[1771117906710,0.00104,69896.0,69893.0,0.07873714]
[1771117906915,4e-05,69896.0,69893.0,0.07173714]
[1771117907285,0.00104,69896.0,69893.0,0.07973714]
[1771117907489,4e-05,69896.0,69893.0,0.07173714]
[1771117907899,0.00104,69896.0,69893.0,0.07873714]
[1771117909326,0.00104,69896.0,69893.0,0.07173714]
[1771117909327,4e-05,69896.0,69893.0,0.07173714]
[1771117909728,0.00204,69896.0,69893.0,0.08173714]
[1771117909928,4e-05,69896.0,69893.0,0.07173714]
[1771117910353,0.00204,69896.0,69893.0,0.08073714]
[1771117910546,4e-05,69896.0,69893.0,0.07173714]
[1771117910969,0.00204,69896.0,69893.0,0.08173714]
[1771117911174,4e-05,69896.0,69893.0,0.07173714]
[1771117911754,4e-05,69896.0,69893.0,0.0002]
[1771117911956,4e-05,69896.0,69893.0,0.07173774]
[1771117912518,0.0004,69897.0,69893.0,0.07173774]
[1771117913114,0.001,69896.0,69893.0,0.07173774]
[1771117913313,4e-05,69897.0,69893.0,0.07169774]
[1771117913635,0.00204,69897.0,69893.0,0.07169774]
[1771117913990,4e-05,69897.0,69893.0,0.07169774]
[1771117914321,0.001,69896.0,69893.0,0.07169774]
[1771117914479,4e-05,69897.0,69893.0,0.07169774]
[1771117916634,4e-05,69897.0,69893.0,0.07369774]
[1771117916803,4e-05,69897.0,69893.0,0.07169774]
[1771117918189,4e-05,69897.0,69894.0,0.07153658]
[1771117918385,4e-05,69900.0,69898.0,0.07153211]
[1771117918609,4e-05,69900.0,69896.0,0.09534923]
[1771117919780,0.00104,69900.0,69896.0,0.09834923]
[1771117921266,0.07257082,69900.0,69896.0,0.003]
[1771117921728,0.00104,69900.0,69896.0,0.003]
[1771117921895,4e-05,69900.0,69894.0,0.07153658]
[1771117922098,0.00104,69900.0,69894.0,0.07153658]
[1771117922308,4e-05,69900.0,69894.0,0.07153658]
[1771117922706,0.00204,69900.0,69894.0,0.07153658]
[1771117922935,4e-05,69900.0,69894.0,0.07153658]
[1771117923260,4e-05,69900.0,69894.0,0.07453658]
[1771117924506,0.00044,69900.0,69894.0,0.07453658]
[1771117926681,0.00044,69900.0,69894.0,0.07153658]
[1771117926889,0.00044,69900.0,69894.0,0.07253658]
[1771117928412,4e-05,69896.0,69894.0,0.0963519]
[1771117928625,0.00044,69900.0,69894.0,0.0963519]
[1771117929150,4e-05,69906.0,69898.0,0.07460653]
[1771117929362,4e-05,69906.0,69903.0,0.07152768]
[1771117930383,4e-05,69906.0,69901.0,0.07152916]
[1771117931353,4e-05,69906.0,69902.0,0.07152863]
[1771117933030,0.00052,69910.0,69905.0,0.07152476]
[1771117933247,0.00052,69910.0,69906.0,0.07152461]
[1771117933419,0.00052,69910.0,69905.0,0.07152476]
[1771117934825,0.0034,69907.0,69905.0,0.07152476]
[1771117935031,0.0034,69907.0,69904.0,0.07152653]
[1771117935160,0.0004,69907.0,69904.0,0.07152653]
[1771117935366,0.0004,69907.0,69905.0,0.001]
[1771117935564,0.0004,69907.0,69904.0,0.07152653]
[1771117935993,0.0004,69907.0,69903.0,0.07152765]
[1771117936204,0.0004,69907.0,69901.0,0.07152932]
[1771117936566,0.0004,69907.0,69896.0,4e-05]
[1771117936783,0.02333157,69906.0,69896.0,0.07157482]
[1771117937185,0.07152885,69902.0,69896.0,4e-05]
[1771117938404,0.07153027,69901.0,69896.0,4e-05]
[1771117938555,0.07152885,69902.0,69896.0,4e-05]
[1771117938750,0.07152885,69902.0,69896.0,0.00204]
[1771117938951,0.07152885,69902.0,69896.0,4e-05]
[1771117939323,0.07252885,69902.0,69896.0,4e-05]
[1771117939536,0.001,69902.0,69896.0,4e-05]
[1771117939735,0.07252905,69902.0,69896.0,4e-05]
[1771117939951,0.001,69902.0,69896.0,4e-05]
[1771117940163,0.001,69902.0,69896.0,0.07157467]
[1771117940580,0.07152787,69903.0,69896.0,0.07157467]
[1771117940822,0.07152863,69904.0,69896.0,0.07457467]
[1771117941029,0.07152863,69904.0,69897.0,0.07153342]
[1771117943216,4e-05,69898.0,69897.0,0.07153342]
[1771117944690,4e-05,69898.0,69897.0,0.07853342]
[1771117947183,4e-05,69898.0,69897.0,0.07153342]
[1771117947381,4e-05,69898.0,69897.0,0.08053342]
[1771117947593,4e-05,69898.0,69897.0,0.009]
[1771117947794,4e-05,69898.0,69897.0,0.08053382]
[1771117948190,4e-05,69900.0,69897.0,0.009]
[1771117948798,4e-05,69900.0,69897.0,0.08053315]
[1771117950159,4e-05,69900.0,69897.0,0.07153315]
[1771117950502,4e-05,69900.0,69897.0,0.07453315]
[1771117956781,4e-05,69900.0,69897.0,0.07153315]
[1771117957100,4e-05,69900.0,69897.0,0.07853315]
[1771117957467,4e-05,69900.0,69896.0,0.07173465]
[1771117957668,4e-05,69900.0,69897.0,0.007]
[1771117958068,4e-05,69900.0,69897.0,0.0715338]
[1771117958297,0.00104,69900.0,69897.0,0.0824938]
[1771117959638,4e-05,69900.0,69897.0,0.0714938]
[1771117960041,0.00104,69900.0,69897.0,0.0824938]
[1771117960243,4e-05,69900.0,69897.0,0.0714938]
[1771117960560,0.00104,69900.0,69897.0,0.0834938]
[1771117960946,4e-05,69902.0,69897.0,0.012]
[1771117961146,4e-05,69906.0,69900.0,0.07152978]
[1771117961322,4e-05,69906.0,69901.0,0.07152911]
[1771117961736,4e-05,69906.0,69901.0,0.07136212]
[1771117962506,4e-05,69906.0,69901.0,0.09518722]
[1771117962990,0.001,69902.0,69901.0,0.09518722]
[1771117963292,4e-05,69906.0,69901.0,0.09518722]
[1771117963487,0.00104,69906.0,69901.0,0.10518722]
[1771117963781,4e-05,69906.0,69901.0,0.09518722]
[1771117964085,0.001,69902.0,69901.0,0.10718722]
[1771117964287,4e-05,69906.0,69901.0,0.10718722]
[1771117964288,4e-05,69906.0,69901.0,0.09518722]
[1771117964684,0.00104,69906.0,69901.0,0.10518722]
[1771117965884,4e-05,69906.0,69901.0,0.09518722]
[1771117966098,0.00044,69906.0,69901.0,0.10718722]
[1771117966310,0.00044,69906.0,69901.0,0.09518722]
[1771117966509,0.07196485,69906.0,69900.0,0.02337903]
[1771117966739,0.07152592,69905.0,69901.0,0.01]
[1771117966885,0.07152592,69905.0,69897.0,0.07218383]
[1771117967238,0.07152592,69905.0,69901.0,0.01]
[1771117967609,0.07152592,69905.0,69898.0,0.07153275]
[1771117968855,0.00044,69906.0,69901.0,0.004]
[1771117969030,0.00044,69906.0,69903.0,0.0715267]
[1771117969559,0.001,69905.0,69903.0,0.0715267]
[1771117969704,0.00044,69906.0,69903.0,0.0715267]
[1771117970127,0.00044,69906.0,69903.0,0.0775267]
[1771117970331,0.00044,69906.0,69904.0,0.07152586]
[1771117970536,0.00044,69906.0,69904.0,0.07152656]
[1771117970763,0.001,69905.0,69904.0,0.07152656]
[1771117971547,0.00052,69910.0,69904.0,0.07152656]
[1771117971751,0.0001261,69919.0,69905.0,0.0684355]
[1771117972102,0.07151833,69913.0,69905.0,0.07152533]
[1771117972496,0.07152014,69911.0,69903.0,0.07152706]
[1771117972698,0.07152014,69911.0,69903.0,0.07157051]
[1771117972927,0.07152014,69911.0,69905.0,0.005]
[1771117973131,0.07152014,69911.0,69903.0,0.07157051]
[1771117973308,0.07152014,69911.0,69904.0,0.07152658]
[1771117973521,0.07151884,69912.0,69905.0,0.011]
[1771117973684,0.07151954,69911.0,69904.0,0.07152658]
[1771117974088,0.02437551,69914.0,69903.0,4.345e-05]
[1771117974283,0.07152401,69907.0,69903.0,4.345e-05]
[1771117974485,0.09589194,69915.0,69903.0,4.345e-05]
[1771117974709,0.07152504,69906.0,69903.0,4.345e-05]
[1771117975236,0.31045776,69910.0,69905.0,0.006]
[1771117975528,0.07152449,69907.0,69903.0,4.345e-05]
[1771117976291,0.07152449,69907.0,69903.0,0.00324345]
[1771117976497,0.07152449,69907.0,69903.0,0.00024345]
[1771117976719,0.07152471,69906.0,69903.0,0.00024345]
[1771117976915,0.07152395,69907.0,69903.0,0.00024345]
[1771117977199,0.07152157,69909.0,69903.0,0.00324345]
[1771117977783,0.07152127,69910.0,69903.0,0.00324345]
[1771117978675,0.07152127,69910.0,69903.0,0.00024345]
[1771117978879,0.07152277,69908.0,69903.0,0.00124345]
[1771117979375,0.07152277,69908.0,69903.0,0.00024345]
[1771117979696,0.07152277,69908.0,69903.0,0.00224345]
[1771117979838,0.07152277,69908.0,69903.0,0.00024345]
[1771117980035,0.07152277,69908.0,69903.0,0.00324345]
[1771117980420,0.02477551,69915.0,69903.0,0.00324345]
[1771117980421,0.07152627,69905.0,69903.0,0.00324345]
[1771117981387,0.07152627,69905.0,69903.0,0.00024345]
[1771117981593,0.07152627,69905.0,69900.0,0.00012]
[1771117981730,0.07152913,69902.0,69900.0,0.00012]
[1771117982759,0.003,69902.0,69900.0,0.00012]
[1771117983137,0.07152807,69903.0,69900.0,0.00012]
[1771117983446,0.07152973,69901.0,69900.0,0.00032]
[1771117985010,0.07252973,69901.0,69900.0,0.00032]
[1771117985414,0.07152973,69901.0,69900.0,0.00032]
[1771117985618,0.07352973,69901.0,69900.0,0.00032]
[1771117986007,0.07152973,69901.0,69900.0,0.00032]
[1771117986257,0.07252973,69901.0,69900.0,0.00032]
[1771117987336,0.001,69901.0,69900.0,0.00032]
[1771117987500,0.07152907,69902.0,69900.0,0.00032]
[1771117987703,0.001,69901.0,69900.0,0.00032]
[1771117988065,0.07152907,69902.0,69900.0,0.00032]
[1771117988261,0.07152907,69902.0,69894.0,0.0002]
[1771117988262,0.07156907,69902.0,69893.0,0.35168717]
[1771117988411,0.005,69901.0,69894.0,0.07153689]
[1771117988634,0.07156907,69902.0,69894.0,0.07153689]
[1771117988982,0.005,69901.0,69895.0,0.07153586]
[1771117989283,0.07156907,69902.0,69893.0,0.35168717]
[1771117989284,4e-05,69902.0,69893.0,0.28015113]
[1771117989453,0.07153426,69897.0,69891.0,0.0002]
[1771117989651,0.07153426,69897.0,69891.0,0.00024345]
[1771117989652,0.07153505,69896.0,69891.0,0.00024345]
[1771117989865,0.07153505,69896.0,69893.0,0.0002]
[1771117990210,0.07153426,69897.0,69893.0,0.0002]
[1771117990417,0.07153534,69896.0,69893.0,0.0002]
[1771117990552,0.02437551,69901.0,69894.0,0.003]
[1771117990753,0.07153587,69895.0,69894.0,0.003]
[1771117990950,0.07153996,69891.0,69890.0,0.00032]
[1771117991247,4e-05,69902.0,69886.0,0.0002]
[1771117991248,0.07154304,69888.0,69886.0,0.0002]
[1771117991852,0.07153894,69892.0,69881.0,0.0003261]
[1771117992191,0.03922907,69884.0,69883.0,0.00024973]
[1771117992613,0.07154617,69885.0,69883.0,0.00024973]
[1771117993009,0.07354493,69888.0,69883.0,0.00024973]
[1771117993376,0.07154406,69887.0,69883.0,0.00024973]
[1771117993772,0.07154493,69888.0,69883.0,0.00024973]
[1771117993773,0.07154535,69886.0,69883.0,0.00024973]
[1771117994631,0.07154535,69886.0,69883.0,0.00124973]
[1771117994914,0.07154621,69885.0,69883.0,0.00024973]
[1771117995684,0.07154605,69887.0,69883.0,0.00024973]
[1771117996085,0.09591302,69894.0,69883.0,0.00024973]
[1771117996284,0.0715412,69890.0,69883.0,0.00024973]
[1771117996512,0.0715412,69890.0,69883.0,0.07179711]
[1771117996762,0.07153747,69894.0,69886.0,0.09560484]
[1771117997040,0.34284,69900.0,69883.0,0.07179756]
[1771117997041,0.07154117,69890.0,69883.0,0.07179756]
[1771117997457,0.07154232,69889.0,69883.0,0.00124973]
[1771117997685,0.07154232,69889.0,69883.0,0.00151431]
[1771117997890,0.07154121,69890.0,69883.0,0.07306222]
[1771117998096,0.07154121,69890.0,69886.0,0.002]
[1771117998293,0.07154121,69890.0,69883.0,0.07306222]
[1771117998723,0.006,69889.0,69884.0,0.07154701]
[1771117998926,0.006,69889.0,69885.0,0.02532501]
[1771117999197,0.006,69889.0,69885.0,0.02406047]
[1771117999552,0.0916,69908.0,69885.0,0.02406047]
[1771117999756,0.0916,69908.0,69891.0,0.07153996]
[1771117999757,0.07153221,69899.0,69891.0,0.07153996]
[1771117999964,0.07153221,69899.0,69892.0,0.07153877]
[1771118000362,0.00012,69900.0,69891.0,0.07153796]
[1771118000693,0.07165086,69900.0,69893.0,0.07153705]
[1771118000891,0.009,69899.0,69891.0,0.02506047]
[1771118001102,0.009,69899.0,69891.0,0.001]
[1771118001303,0.0005,69897.0,69890.0,0.02406047]
[1771118001471,0.0005,69897.0,69893.0,0.02406047]
[1771118001896,0.07153182,69899.0,69893.0,0.02406047]
[1771118002565,0.08465085,69900.0,69893.0,0.02406047]
[1771118002984,0.07165085,69900.0,69893.0,0.02406047]
[1771118003190,4e-05,69894.0,69893.0,0.02406047]
[1771118003397,4e-05,69894.0,69893.0,0.0955982]
[1771118004458,0.01404,69894.0,69893.0,0.0955982]
[1771118004912,4e-05,69894.0,69893.0,0.0955982]
[1771118005440,4e-05,69894.0,69892.0,0.0002]
[1771118006052,4e-05,69896.0,69892.0,0.0002]
[1771118006258,4e-05,69898.0,69894.0,0.07153617]
[1771118006501,4e-05,69898.0,69896.0,0.02406047]
[1771118007031,4e-05,69898.0,69893.0,0.07153726]
[1771118007208,4e-05,69898.0,69894.0,0.09559713]
[1771118007449,0.00904,69898.0,69894.0,0.02406047]
[1771118007614,4e-05,69898.0,69894.0,0.02406047]
[1771118008033,0.01404,69898.0,69894.0,0.02406047]
[1771118009761,4e-05,69898.0,69894.0,0.02406047]
[1771118009993,0.00404,69898.0,69894.0,0.02406047]
[1771118010445,0.00404,69898.0,69894.0,0.02426047]
[1771118010618,0.00404,69898.0,69894.0,0.0002]
[1771118010759,4e-05,69898.0,69894.0,0.0002]
[1771118011569,0.00404,69898.0,69894.0,0.0002]
[1771118012830,4e-05,69898.0,69894.0,0.0002]
[1771118013270,0.00404,69898.0,69894.0,0.0002]
[1771118013469,4e-05,69898.0,69894.0,0.0002]
[1771118013872,0.00404,69898.0,69894.0,0.0002]
[1771118014071,4e-05,69898.0,69894.0,0.0002]
[1771118014484,0.00404,69898.0,69894.0,0.0002]
[1771118014683,4e-05,69898.0,69894.0,0.0002]
[1771118016272,0.07169166,69900.0,69894.0,0.0002]
[1771118016456,0.00016,69900.0,69895.0,0.02406047]
[1771118016665,0.002,69898.0,69895.0,0.02406047]
[1771118016874,0.002,69898.0,69894.0,0.0002]
[1771118017118,0.0715318,69899.0,69894.0,0.0002]
[1771118017290,0.0715318,69899.0,69894.0,0.02426047]
[1771118017964,0.002,69898.0,69897.0,0.07153382]
[1771118018109,0.002,69898.0,69897.0,0.07149382]
[1771118018312,0.002,69898.0,69896.0,0.07153449]
[1771118018513,0.00016,69900.0,69897.0,0.02406047]
[1771118019135,0.00016,69900.0,69897.0,0.09559415]
[1771118019340,0.00016,69900.0,69897.0,0.02406047]
[1771118019546,0.00016,69900.0,69895.0,0.0715352]
[1771118019755,0.07153186,69899.0,69894.0,0.0002]
[1771118020349,0.07169117,69900.0,69894.0,0.0002]
[1771118020729,0.07469117,69900.0,69894.0,0.0002]
[1771118020958,0.07169117,69900.0,69894.0,0.0002]
[1771118021398,0.07169117,69900.0,69894.0,0.07173685]